Cogmind - Beta 14 @@@ ROGUE MODE // 2024.12.13 @ 00:50:07 Player: AshCrow Result: Core destroyed Performance ------------- Evolutions (0) 0 Regions Visited (1) 200 Robots Destroyed (8) 40 Value Destroyed (195) 195 Prototype IDs (0) 0 Alien Tech Used (0) 0 Bonus (0) 0 TOTAL SCORE: 435 Bonus ------- None Cogmind --------- Core Integrity 0/250 Matter 241/300 Energy 250/250 System Corruption 16% Temperature Cool (0) Movement Treading (160) Location -10/Materials Parts ------- > --- POWER (1) -------- Ion Engine > --- PROPULSION (2) --- Light Treads > --- UTILITY (2) ------ (None) > --- WEAPON (2) ------- Assault Rifle > --- INVENTORY (5) ---- Light Ion Engine Visual Processing Unit Medium Laser Assault Rifle Mini Grenade Launcher Peak State ------------ > --- POWER ------------ Ion Engine > --- PROPULSION ------- Light Treads Light Treads > --- UTILITY ---------- Small Storage Unit Improved Terrain Scanner > --- WEAPON ----------- Assault Rifle Mini Grenade Launcher > --- INVENTORY -------- Light Ion Engine Aluminum Leg Aluminum Leg Medium Laser Hammer [Rating: 10] Favorites ----------- Power Ion Engine Engine Ion Engine Propulsion Light Treads Treads Light Treads Utility Small Storage Unit Device Improved Terrain Scanner Storage Small Storage Unit Processor Signal Interpreter Weapon Assault Rifle Energy Gun Medium Laser Ballistic Gun Assault Rifle Launcher Mini Grenade Launcher Impact Weapon Hammer Build | -11 -10 ------- Run | Yrd Mat Slots Evolved . | . . Power . | . . Propulsion . | . . Utility . | . . Weapon . | . . Parts Attached 13 | 9 4 Power 2 | 2 . Engine 2 | 2 . Core . | . . Reactor . | . . Propulsion 2 | 2 . Treads 2 | 2 . Leg . | . . Wheel . | . . Hover . | . . Flight . | . . Utility 3 | 2 1 Device 1 | 1 . Storage 1 | 1 . Processor 1 | . 1 Hackware . | . . Protection . | . . Artifact . | . . Weapon 6 | 3 3 Energy Gun 1 | 1 . Energy Cannon . | . . Ballistic Gun 3 | 2 1 Ballistic Cannon . | . . Launcher 1 | . 1 Special Weapon . | . . Impact Weapon 1 | . 1 Slashing Weapon . | . . Piercing Weapon . | . . Special Melee Weapon . | . . Unidentified Prototypes . | . . Parts Lost 4 | . 4 Power . | . . Propulsion 1 | . 1 Utility 2 | . 2 Weapon 1 | . 1 Highest Loss Streak 3 | . 3 To Critical Strikes . | . . Average Slot Usage (%) 99 | . 99 Engine 14 | . 14 Treads 27 | . 27 Device 4 | . 4 Storage 14 | . 14 Processor 10 | . 10 Ballistic Gun 25 | . 25 Impact Weapon 1 | . 1 Peak Build Rating 10 | 9 10 Average Rating 7 | 6 7 On Entrance 4 | . 9 Naked Turns . | . . Heaviest Build 15 | 15 15 Greatest Support 40 | 40 40 Greatest Overweight (x) . | . . Average Overweight (x) . | . . Largest Inventory Capacity 8 | 8 8 Average Capacity 7 | 7 7 Most Carried 6 | 4 6 Average Carried 4 | 1 4 Final Capacity 8 | 8 5 Final Carried 5 | 4 5 Class Distribution -------------------- 100% | Mutant Dominant Class ---------------- Mutant | -10/Materials Resources | -11 -10 ----------- Run | Yrd Mat Matter Collected 369 | 221 148 Remotely . | . . Salvage Created 181 | 20 161 Parts 14 | 3 11 Haulers Intercepted . | . . Recyclers Shooed . | . . Parts Field Recycled . | . . Retrieved Matter . | . . Parts Self-Destructed . | . . Prevented . | . . Kills | -11 -10 ------- Run | Yrd Mat Combat Hostiles Destroyed 4 | . 4 Melee 1 | . 1 Guns 2 | . 2 AOE 1 | . 1 Classes Destroyed 3 | 1 2 Tunneler 2 | 2 . Watcher 2 | . 2 Grunt 4 | . 4 Best Kill Streak 4 | 1 4 Combat Bots Only 2 | . 2 Max Kills in Single Turn 2 | 1 2 Gunslinging . | . . Exploded 1 | . 1 Melee 1 | . 1 Uniques/NPCs Destroyed . | . . Combat | -11 -10 -------- Run | Yrd Mat Hostile Shots Fired 29 | . 29 Missed 12 | . 12 Damage Taken 1022 | . 1022 Core 253 | . 253 Absorbed by Shields . | . . Core Remaining (%) 100 | 100 . Volleys Fired 21 | 3 18 Largest 2 | 2 2 Hottest 50 | 40 50 Shots Fired 40 | 6 34 Gun 38 | 6 32 Cannon . | . . Launcher 2 | . 2 Special . | . . Kinetic 38 | 6 32 Thermal . | . . Explosive 2 | . 2 Electromagnetic . | . . Robot Hit Streak 5 | 1 5 Robot Miss Streak 2 | 1 2 Penetration Max . | . . Secondary Targets 1 | . 1 Max Gunslinging Chain 1 | . 1 Shots Hit Robots 22 | 3 19 Core Hits 13 | 1 12 Critical Kills . | . . Critical Parts Destroyed . | . . Critical Strikes . | . . Melee Attacks 33 | . 33 Impact 33 | . 33 Slashing . | . . Piercing . | . . Sneak Attacks . | . . Combat Hostiles . | . . Follow-up Attacks . | . . Damage Inflicted 488 | 40 448 Guns 259 | 40 219 Cannons . | . . Explosions 202 | . 202 Melee . | . . Ramming 27 | . 27 Kinetic 259 | 40 219 Thermal . | . . Explosive 202 | . 202 Electromagnetic . | . . Impact . | . . Slashing . | . . Piercing . | . . Highest Corruption 16 | . 16 Average Corruption 1 | . 1 Corruption Purged . | . . Corruption Blocked . | . . Effects 1 | . 1 Energy Discharges 1 | . 1 Overload Shots . | . . Overflow Damage . | . . Projectiles . | . . Explosions . | . . Melee . | . . Knockbacks . | . . Impact . | . . Kinetic . | . . Secondary . | . . Self-Inflicted Damage 2 | . 2 Shots . | . . Rammed 6 | . 6 Targets Rammed 7 | 1 6 Kicked . | . . Crushed 1 | 1 . Highest Temperature 2 | . 2 Average Temperature 2 | . 2 Received Heat Transfer 111 | . 111 Siege Activations . | . . Robots Corrupted . | . . Combat Hostiles . | . . Parts Fried . | . . Impact Corruptions . | . . Robots Melted . | . . Combat Hostiles . | . . Parts Melted . | . . Heat Transferred . | . . Parts Sabotaged . | . . Parts Stolen . | . . Parts Stripped . | . . Power Chain Reactions . | . . Alert | -11 -10 ------- Run | Yrd Mat Peak Influence 139 | 10 139 Initial 6 | . 6 Average 15 | 3 16 Maximum Alert Level . | . . Low Security (%) 100 | 100 100 Level 1 . | . . Level 2 . | . . Level 3 . | . . Level 4 . | . . Level 5 . | . . High Security . | . . Max Security . | . . Squads Dispatched . | . . Investigation . | . . Extermination . | . . Reinforcement . | . . Assault . | . . Garrison . | . . Intercept . | . . Searches Triggered . | . . Construction Impeded . | . . Haulers Reinforced . | . . Active Scanning Responses . | . . Cargo Convoy Interrupts . | . . Stealth | -11 -10 --------- Run | Yrd Mat Distress Signals 1 | . 1 Communications Jammed . | . . Distress Signals . | . . Times Spotted 9 | . 9 Peak Tracking Total 4 | . 4 Tactical Retreats . | . . Traps | -11 -10 ------- Run | Yrd Mat Traps Triggered 2 | . 2 Indirectly . | . . Trap Hack Attempts . | . . Triggered . | . . Disarmed . | . . Reprogrammed . | . . Reused . | . . Traps Extracted . | . . Installed . | . . Triggered . | . . Machines | -11 -10 ---------- Run | Yrd Mat Machines Disabled . | . . Max in Single Turn . | . . Machines Repaired . | . . Machines Dismantled . | . . Machines Sabotaged . | . . Overloaded Fab Kills . | . . Hacking | -11 -10 --------- Run | Yrd Mat Machines Accessed . | . . Terminals . | . . Fabricators . | . . Repair Stations . | . . Recycling Units . | . . Scanalyzers . | . . Garrison Access . | . . Total Hacks . | . . Successful . | . . Failed . | . . Catastrophic . | . . Database Lockouts . | . . Manual . | . . Terminals . | . . Fabricators . | . . Repair Stations . | . . Recycling Units . | . . Scanalyzers . | . . Garrison Access . | . . Terminal Hacks . | . . Fabricator Hacks . | . . Repair Station Hacks . | . . Recycling Unit Hacks . | . . Scanalyzer . | . . Garrison Access Hacks . | . . Unauthorized Hacks . | . . Terminals . | . . Fabricators . | . . Repair Stations . | . . Recycling Units . | . . Scanalyzers . | . . Garrison Access . | . . Data Cores Recovered . | . . Used . | . . Hacking Detections . | . . Full Trace Events . | . . Feedback Events . | . . Feedback Blocked . | . . Robot Schematics Acquired . | . . Robots Built . | . . Authchips . | . . Time . | . . Total Robot Build Rating . | . . Part Schematics Acquired . | . . Parts Built . | . . Authchips . | . . Time . | . . Total Part Build Rating . | . . Parts Repaired . | . . Time . | . . Parts Recycled . | . . Recycled Matter . | . . Retrieved Matter . | . . Retrieved Components . | . . Parts Scanalyzed . | . . Part Schematics Acquired . | . . Parts Damaged . | . . Bothacking | -11 -10 ------------ Run | Yrd Mat Used RIF Installer . | . . Robots Hacked . | . . Non-combat . | . . Combat . | . . Robot Hacks Applied . | . . Relay Couplers Released . | . . Fabnet Peak Effective % . | . . Robots Rewired . | . . Allies Hacked . | . . Hacks Repelled . | . . Allies | -11 -10 -------- Run | Yrd Mat Total Allies . | . . Largest Group . | . . Highest-Rated Group . | . . Highest-Rated Ally . | . . Total Orders . | . . Ally Attacks . | . . Total Damage . | . . Kills . | . . Allies Corrupted . | . . Allies Melted . | . . Intel | -11 -10 ------- Run | Yrd Mat Robot Analysis Total . | . . Derelict Logs Recovered . | . . Drone Launches . | . . Drone Recoveries . | . . Exploration | -11 -10 ------------- Run | Yrd Mat Turns Passed 1408 | 139 1269 Spaces Moved 336 | 73 263 Core 3 | 3 . Treads 333 | 70 263 Legs . | . . Wheels . | . . Hover . | . . Flight . | . . Fastest Speed 50 | 50 160 Average Speed 159 | 155 160 Slowest Speed 160 | 160 160 Overloaded Moves . | . . Propulsion Burnouts . | . . Robots Hopped . | . . Cave-ins Triggered 3 | . 3 Exploration Rate (%) 19 | 6 32 Regions Visited 1 Branch Regions . Pre-discovered Areas . | . . Known Exits Taken . | . . Unknown Exits Taken 1 | 1 . Scrap Searched . | . . Spaces Dug 23 | . 23 Terrain Destroyed 42 | . 42 Melee 23 | . 23 Projectile . | . . AOE 19 | . 19 Terrain Rammed 1 | . 1 Walls Destroyed . | . . Machines Disabled . | . . Actions | -11 -10 --------- Run | Yrd Mat Total 1102 | 88 1014 Wait 685 | . 685 Move 332 | 72 260 Hop . | . . Pick Up 6 | 3 3 Fast Attach 7 | 7 . Attach . | . . Detach . | . . Swap 6 | 2 4 Drop 2 | . 2 Fire 21 | 3 18 Melee 33 | . 33 Ram . | . . Kick . | . . Crush 7 | 1 6 Escape Stasis 3 | . 3 Rewire . | . . Trap . | . . Miscellaneous . | . . Route ------- -11/Scrapyard -10/Materials (discovered 3 exits: [*Mat] / [*Min] / *Sub) History --------- Turn | Location | Event 22 | -11/Scrapyard | Discovered new exit (range 16) 140 | -11/Scrapyard | Entered Materials 312 | -10/Materials | Build established: Mutant 340 | -10/Materials | Discovered new exit (range 6) 467 | -10/Materials | Discovered new exit (range 5) 1244 | -10/Materials | Discovered new exit (range 10) 1283 | -10/Materials | Identified exit to Subcaves 1375 | -10/Materials | Crushed by falling debris 1397 | -10/Materials | Crushed by falling debris 1398 | -10/Materials | Core integrity fell below 50% 1407 | -10/Materials | Crushed by falling debris 1408 | -10/Materials | Core integrity fell below 20% 1408 | -10/Materials | System corruption reached 10% 1409 | -10/Materials | Core destroyed Last Messages --------------- U-05 Engineer builds a Wall. [Achievement: Part-time Excavator] The unstable cave ceiling collapses. Crushed by falling debris. Lgt. Treads destroyed. System corrupted by crushing effect (+1). The unstable cave ceiling collapses. Crushed by falling debris. System corrupted: Energy discharge (-67). The unstable cave ceiling collapses. Crushed by falling debris. Signal Interpreter destroyed. System corrupted by crushing effect (+5). Sml. Storage Unit destroyed. System corrupted by crushing effect (+5). Hammer destroyed. System corrupted by crushing effect (+5). Rammed Earth. Destabilizing: Core damaged (-7). Destabilizing: Core damaged (-5). Map ----- +----------------------------------------------------+ | | | ???????????????????????????? | | ???????????????????????????? | | ???????????????????????????? | | ???????????????????????????? | | ???????????????????????????? | | ???????????????????????????? | | ???????????????????????????? | | ???????????????????????????? | | ???????????????????????????? | | ???????????????????????????? | | ???????????????????????????? | | ???????????????????????????? | | ???????????????????????????? | | ???????????????????????????? | | ???????????????????????????? | | ???????????????????????????? | | ???????????????????????????? | | ???????????#???????????????? | | ????? ?????????????????????? | | ?????????????????#?????????? | | ????? ????#????????????????? | | ???????????????????????????? | | ??"????????????????????###? | | ????????????????????????###? | | ????????????? ?"????????#@#? | | ????????????????????????# #? | | ????????#???????????????###? | | ###???????? ??? ?#??????###? | | ###?????????????????### #? | | #############+####????# # #? | | #?????####? | | = < #?????####? | | ! ! #?????# ##? | | ## ############ #? | | ## ==## # # #?# #? | | ##!!!!] ## # #?# #? | | ?#!!!!]]## #?# #? | | ?######### # #?# #? | | ?????????# ## #?# #? | | ?????????# # ### #? | | #????????# # ># ##? | | ??????#??# # # #?? | | #?#??????# #############?? | | #????#???# ##????????????? | | ??######## #?????????????? | | ??#![ # #????#???#????? | | ??#= # ##????#???????? | | ??# # ##????#???????? | | ??# # #########?????? | +----------------------------------------------------+ Best States ------------- Heat Dissipation 25 Energy Generation 10 Energy Capacity 250 Matter Stores 241 Matter Capacity 300 Sight Range 16 Terrain Scan Range 16 Terrain Scan Density 10 Evasion (%) 40 Recoil Reduction 2 Item Schematics ----------------- None Robot Schematics ------------------ None Fabricated ------------ Nothing Alien Tech Used ----------------- None Achievements -------------- Fist Fight Part-time Excavator Challenges ------------ None Game ------ Seed TeslaStealthPrototype Manual? 0 Play Time 00:11:16 Cumulative 27.3 hours Start 2024.12.13 @ 00:43:15 End 2024.12.13 @ 00:50:07 Sessions 1 Manual Loads 0 Difficulty Rogue Special Mode None Game No. 39 Rogue 39 Adventurer 0 Explorer 0 Win Type - Total 0 Types 0/0/0/0/0/0/0/0/0 Lore% 22 Gallery% 26 Achievement% 24 Wizard Run 0 Options --------- Layout 1 ASCII 0 Keyboard 1 Movement Numpad Keybinds 0 Fullscreen 1 Font 24/Smallcaps Map View 50x35 Zoom Use 0% Tactical HUD 0 Map Filters NONE Filters NONE Steam 1 RUN: cabfe0c9-cd7f-41eb-bbc1-1e50158025d0